[Event "*** Titled Tuesday Blitz"]
[Site "Chess.com"]
[Date "2020.02.04"]
[Round "6"]
[White "volcanoexplorer"]
[Black "Hadza_3"]
[Result "1-0"]
[WhiteElo "2605"]
[BlackElo "2399"]
[TimeControl "180+2"]
[EndTime "14:19:17 PST"]
[Termination "volcanoexplorer won by checkmate"]

1. e4 {[%clk 0:03:01.9]} 1... e5 {[%clk 0:03:00.4]} 2. Nf3 {[%clk 0:03:01.8]}
2... Nc6 {[%clk 0:03:00.7]} 3. Bc4 {[%clk 0:03:02.1]} 3... Nf6 {[%clk 0:03:02]}
4. d3 {[%clk 0:03:01]} 4... Be7 {[%clk 0:03:02.5]} 5. O-O {[%clk 0:03:01.4]}
5... d6 {[%clk 0:03:03.8]} 6. c3 {[%clk 0:03:02.5]} 6... h6 {[%clk 0:03:03.1]}
7. Re1 {[%clk 0:03:03.2]} 7... O-O {[%clk 0:03:04.5]} 8. Nbd2 {[%clk 0:03:04.1]}
8... Nh7 {[%clk 0:03:05.8]} 9. Nf1 {[%clk 0:03:04.7]} 9... Ng5 {[%clk
0:03:07.2]} 10. Nxg5 {[%clk 0:03:01.9]} 10... Bxg5 {[%clk 0:03:09.1]} 11. Qh5
{[%clk 0:02:55.2]} 11... Bxc1 {[%clk 0:03:06.8]} 12. Raxc1 {[%clk 0:02:57.1]}
12... Qf6 {[%clk 0:03:02.5]} 13. Ne3 {[%clk 0:02:55.2]} 13... Ne7 {[%clk
0:03:01.9]} 14. b4 {[%clk 0:02:39.1]} 14... c6 {[%clk 0:03:02.9]} 15. Bb3 {[%clk
0:02:38.7]} 15... Ng6 {[%clk 0:03:03.9]} 16. g3 {[%clk 0:02:22.8]} 16... Be6
{[%clk 0:02:58.9]} 17. Ng4 {[%clk 0:02:07.8]} 17... Qe7 {[%clk 0:02:14.7]} 18.
Ne3 {[%clk 0:02:02.3]} 18... Qf6 {[%clk 0:02:10.9]} 19. Rcd1 {[%clk 0:01:54.7]}
19... a5 {[%clk 0:01:57.3]} 20. d4 {[%clk 0:01:45.6]} 20... Bxb3 {[%clk
0:01:45.1]} 21. axb3 {[%clk 0:01:46.4]} 21... axb4 {[%clk 0:01:46.1]} 22. cxb4
{[%clk 0:01:42]} 22... exd4 {[%clk 0:01:23.6]} 23. Ng4 {[%clk 0:01:42.9]} 23...
Qe6 {[%clk 0:00:43.6]} 24. Rxd4 {[%clk 0:01:42.9]} 24... Qxb3 {[%clk 0:00:43.3]}
25. Red1 {[%clk 0:01:36.7]} 25... Rad8 {[%clk 0:00:24.9]} 26. e5 {[%clk
0:01:35.3]} 26... d5 {[%clk 0:00:23.7]} 27. e6 {[%clk 0:01:36.7]} 27... Ne7
{[%clk 0:00:17.5]} 28. Nxh6+ {[%clk 0:00:57]} 28... gxh6 {[%clk 0:00:17.4]} 29.
Rg4+ {[%clk 0:00:58.1]} 29... Kh7 {[%clk 0:00:12.9]} 30. Rh4 {[%clk 0:00:57.3]}
30... Ng8 {[%clk 0:00:06.3]} 31. exf7 {[%clk 0:00:57.7]} 31... Rd6 {[%clk
0:00:04.4]} 32. fxg8=Q+ {[%clk 0:00:58.3]} 32... Rxg8 {[%clk 0:00:06.3]} 33. Re1
{[%clk 0:00:56.6]} 33... Rg7 {[%clk 0:00:07.2]} 34. Qf5+ {[%clk 0:00:55.4]}
34... Rdg6 {[%clk 0:00:07.9]} 35. Rg4 {[%clk 0:00:34.4]} 35... Qc3 {[%clk
0:00:07.3]} 36. Re6 {[%clk 0:00:28.3]} 36... Qc1+ {[%clk 0:00:04.9]} 37. Kg2
{[%clk 0:00:29.5]} 37... Qg5 {[%clk 0:00:02.5]} 38. Rxg5 {[%clk 0:00:29]} 38...
hxg5 {[%clk 0:00:04.4]} 39. Qh3+ {[%clk 0:00:28.5]} 39... Kg8 {[%clk 0:00:05.3]}
40. Re8+ {[%clk 0:00:30]} 40... Kf7 {[%clk 0:00:07.2]} 41. Qd7+ {[%clk
0:00:31.2]} 41... Kf6 {[%clk 0:00:08]} 42. Qe6# {[%clk 0:00:33]} 1-0

[Event "*** Titled Tuesday Blitz"]
[Site "Chess.com"]
[Date "2020.02.04"]
[Round "6"]
[White "Volodar_Murzin"]
[Black "MatthewG-p4p"]
[Result "0-1"]
[WhiteElo "2640"]
[BlackElo "2827"]
[TimeControl "180+2"]
[EndTime "14:19:21 PST"]
[Termination "MatthewG-p4p won by resignation"]

1. d4 {[%clk 0:03:01.9]} 1... Nf6 {[%clk 0:02:46.8]} 2. Nf3 {[%clk 0:03:01.1]}
2... c5 {[%clk 0:02:47]} 3. d5 {[%clk 0:03:00.2]} 3... e6 {[%clk 0:02:40.2]} 4.
dxe6 {[%clk 0:02:50.7]} 4... fxe6 {[%clk 0:02:42.1]} 5. c4 {[%clk 0:02:52.1]}
5... d5 {[%clk 0:02:43.1]} 6. cxd5 {[%clk 0:02:51]} 6... exd5 {[%clk 0:02:45]}
7. Bg5 {[%clk 0:02:51.3]} 7... Be7 {[%clk 0:02:45.4]} 8. Nc3 {[%clk 0:02:50.2]}
8... d4 {[%clk 0:02:44.6]} 9. Bxf6 {[%clk 0:02:51]} 9... Bxf6 {[%clk 0:02:46.5]}
10. Ne4 {[%clk 0:02:52.2]} 10... Be7 {[%clk 0:02:47.5]} 11. e3 {[%clk 0:02:50]}
11... Nc6 {[%clk 0:02:41.5]} 12. exd4 {[%clk 0:02:43.8]} 12... cxd4 {[%clk
0:02:37.7]} 13. Bd3 {[%clk 0:02:39.8]} 13... O-O {[%clk 0:02:35.2]} 14. O-O
{[%clk 0:02:39]} 14... Bg4 {[%clk 0:02:31.3]} 15. Qb3+ {[%clk 0:02:27.9]} 15...
Kh8 {[%clk 0:02:26.8]} 16. Nfd2 {[%clk 0:02:28.7]} 16... Qd7 {[%clk 0:02:22.1]}
17. Rae1 {[%clk 0:02:18.8]} 17... Rae8 {[%clk 0:02:12.5]} 18. Nc4 {[%clk
0:02:06]} 18... Be6 {[%clk 0:02:08.3]} 19. Ned2 {[%clk 0:01:42.2]} 19... Bd5
{[%clk 0:02:03.9]} 20. Be4 {[%clk 0:01:30.1]} 20... Bg8 {[%clk 0:01:53.7]} 21.
a3 {[%clk 0:01:08.1]} 21... Na5 {[%clk 0:01:47.3]} 22. Qd3 {[%clk 0:01:01.6]}
22... Nxc4 {[%clk 0:01:29.4]} 23. Nxc4 {[%clk 0:01:02.1]} 23... Bf6 {[%clk
0:01:25.1]} 24. Nd2 {[%clk 0:00:51.4]} 24... Rd8 {[%clk 0:01:21.2]} 25. Rc1
{[%clk 0:00:47.6]} 25... Bg5 {[%clk 0:01:17.5]} 26. Rc2 {[%clk 0:00:37.2]} 26...
b6 {[%clk 0:01:11.1]} 27. Nf3 {[%clk 0:00:36.1]} 27... Bf6 {[%clk 0:01:11.6]}
28. Rfc1 {[%clk 0:00:35.2]} 28... Qd6 {[%clk 0:01:10.8]} 29. Rc6 {[%clk
0:00:33.4]} 29... Qf4 {[%clk 0:01:11.5]} 30. g3 {[%clk 0:00:31.7]} 30... Qh6
{[%clk 0:01:02.4]} 31. Ne5 {[%clk 0:00:24.4]} 31... Qh5 {[%clk 0:00:57.2]} 32.
Nf3 {[%clk 0:00:21.5]} 32... Rde8 {[%clk 0:00:57.3]} 33. Nd2 {[%clk 0:00:21.6]}
33... Bg5 {[%clk 0:00:55.8]} 34. f4 {[%clk 0:00:21.7]} 34... Rxf4 {[%clk
0:00:35.1]} 35. gxf4 {[%clk 0:00:20.7]} 35... Bxf4 {[%clk 0:00:37]} 36. Re1
{[%clk 0:00:11.3]} 36... Qxh2+ {[%clk 0:00:33.9]} 37. Kf1 {[%clk 0:00:11.4]}
37... Bxd2 {[%clk 0:00:31.1]} 38. Re2 {[%clk 0:00:05.6]} 38... Rf8+ {[%clk
0:00:32]} 39. Bf3 {[%clk 0:00:06.2]} 39... Qh1+ {[%clk 0:00:29.4]} 40. Kf2
{[%clk 0:00:07.3]} 40... Be3+ {[%clk 0:00:29.6]} 41. Rxe3 {[%clk 0:00:08.1]}
41... dxe3+ {[%clk 0:00:31.5]} 42. Qxe3 {[%clk 0:00:09.2]} 42... Rxf3+ {[%clk
0:00:30.5]} 0-1

[Event "*** Titled Tuesday Blitz"]
[Site "Chess.com"]
[Date "2020.02.04"]
[Round "6"]
[White "Raspadsistema"]
[Black "bait_or_mate"]
[Result "0-1"]
[WhiteElo "2777"]
[BlackElo "2551"]
[TimeControl "180+2"]
[EndTime "14:19:40 PST"]
[Termination "bait_or_mate won by resignation"]

1. e4 {[%clk 0:03:01.9]} 1... c5 {[%clk 0:03:00.9]} 2. Nc3 {[%clk 0:03:03]} 2...
Nc6 {[%clk 0:03:01.7]} 3. Nge2 {[%clk 0:03:04.3]} 3... e6 {[%clk 0:03:01.6]} 4.
d4 {[%clk 0:03:05.7]} 4... cxd4 {[%clk 0:03:03.5]} 5. Nxd4 {[%clk 0:03:07.6]}
5... Qc7 {[%clk 0:03:05]} 6. Be3 {[%clk 0:03:09.3]} 6... a6 {[%clk 0:03:06.4]}
7. f4 {[%clk 0:03:11]} 7... d6 {[%clk 0:03:00.9]} 8. Bd3 {[%clk 0:03:12.3]} 8...
Nf6 {[%clk 0:02:59.4]} 9. Nb3 {[%clk 0:03:13.4]} 9... Be7 {[%clk 0:02:52.8]} 10.
O-O {[%clk 0:03:14.6]} 10... O-O {[%clk 0:02:54.4]} 11. g4 {[%clk 0:03:16]}
11... Nd7 {[%clk 0:02:54.3]} 12. g5 {[%clk 0:03:17.5]} 12... Nc5 {[%clk
0:02:55.4]} 13. Qh5 {[%clk 0:03:17]} 13... g6 {[%clk 0:02:55.7]} 14. Qh6 {[%clk
0:03:18.5]} 14... Re8 {[%clk 0:02:55.4]} 15. Rf3 {[%clk 0:03:19.9]} 15... Bf8
{[%clk 0:02:45.7]} 16. Qh4 {[%clk 0:03:20.9]} 16... Be7 {[%clk 0:02:47.2]} 17.
Rh3 {[%clk 0:02:59.6]} 17... h5 {[%clk 0:02:46.6]} 18. Nxc5 {[%clk 0:02:54.9]}
18... dxc5 {[%clk 0:02:46.3]} 19. e5 {[%clk 0:02:55.6]} 19... Nd4 {[%clk
0:02:36.8]} 20. Ne4 {[%clk 0:02:36.4]} 20... Nf5 {[%clk 0:02:07.7]} 21. Qf2
{[%clk 0:02:23.7]} 21... c4 {[%clk 0:01:51.1]} 22. Be2 {[%clk 0:02:23.6]} 22...
Nxe3 {[%clk 0:01:37.2]} 23. Qxe3 {[%clk 0:02:25.5]} 23... Kg7 {[%clk 0:01:33.3]}
24. Nf6 {[%clk 0:02:13.9]} 24... Rd8 {[%clk 0:01:21]} 25. Qf3 {[%clk 0:01:54.1]}
25... Qb6+ {[%clk 0:00:50.5]} 26. Kf1 {[%clk 0:01:54.7]} 26... Qxb2 {[%clk
0:00:45.8]} 27. Rd1 {[%clk 0:01:55.5]} 27... Qxc2 {[%clk 0:00:42.7]} 28. Rxd8
{[%clk 0:01:46.4]} 28... Bxd8 {[%clk 0:00:44.6]} 29. Nxh5+ {[%clk 0:01:39.4]}
29... gxh5 {[%clk 0:00:46.5]} 30. Qxh5 {[%clk 0:01:41]} 30... Kf8 {[%clk
0:00:44.5]} 31. Qh8+ {[%clk 0:01:37.9]} 31... Ke7 {[%clk 0:00:44.4]} 32. Qf6+
{[%clk 0:01:25]} 32... Kd7 {[%clk 0:00:43.7]} 33. Qxf7+ {[%clk 0:01:26.6]} 33...
Kc6 {[%clk 0:00:41]} 34. Rh7 {[%clk 0:01:05.8]} 34... Bb6 {[%clk 0:00:18.2]} 35.
Qe8+ {[%clk 0:00:42.1]} 35... Kc5 {[%clk 0:00:18.3]} 36. Qe7+ {[%clk 0:00:26.7]}
36... Kb5 {[%clk 0:00:15]} 37. Qa3 {[%clk 0:00:21.6]} 37... Qb1+ {[%clk
0:00:13.7]} 38. Kg2 {[%clk 0:00:22.9]} 38... Qxh7 {[%clk 0:00:09.8]} 39. Qb3+
{[%clk 0:00:13]} 39... Kc6 {[%clk 0:00:10.6]} 40. Qxc4+ {[%clk 0:00:12.5]} 40...
Bc5 {[%clk 0:00:11.5]} 41. Bf3+ {[%clk 0:00:13.3]} 41... Kb6 {[%clk 0:00:13]}
42. a4 {[%clk 0:00:11.1]} 42... Qc7 {[%clk 0:00:09.7]} 43. g6 {[%clk 0:00:12.1]}
43... Bd7 {[%clk 0:00:10.5]} 44. g7 {[%clk 0:00:12.2]} 44... Rg8 {[%clk
0:00:11.6]} 45. a5+ {[%clk 0:00:13.2]} 45... Ka7 {[%clk 0:00:12.1]} 0-1

[Event "*** Titled Tuesday Blitz"]
[Site "Chess.com"]
[Date "2020.02.04"]
[Round "6"]
[White "Abund"]
[Black "jefferyx"]
[Result "0-1"]
[WhiteElo "2728"]
[BlackElo "2929"]
[TimeControl "180+2"]
[EndTime "14:19:48 PST"]
[Termination "jefferyx won by resignation"]

1. Nf3 {[%clk 0:03:01.9]} 1... d5 {[%clk 0:03:00.4]} 2. d4 {[%clk 0:03:01.3]}
2... Nf6 {[%clk 0:03:01.5]} 3. c4 {[%clk 0:03:02.6]} 3... dxc4 {[%clk
0:03:03.4]} 4. e3 {[%clk 0:03:03.2]} 4... e6 {[%clk 0:03:04.7]} 5. Bxc4 {[%clk
0:03:04.1]} 5... c5 {[%clk 0:03:06]} 6. O-O {[%clk 0:03:04]} 6... Nc6 {[%clk
0:03:07.3]} 7. Qe2 {[%clk 0:02:59]} 7... a6 {[%clk 0:03:07.5]} 8. Rd1 {[%clk
0:02:58.5]} 8... b5 {[%clk 0:03:08.6]} 9. dxc5 {[%clk 0:02:57.7]} 9... Qc7
{[%clk 0:03:10]} 10. Bd3 {[%clk 0:02:53.1]} 10... Nb4 {[%clk 0:03:11.2]} 11. a4
{[%clk 0:02:42.2]} 11... bxa4 {[%clk 0:03:12.1]} 12. Bc4 {[%clk 0:02:28.7]}
12... Bxc5 {[%clk 0:03:13]} 13. Nc3 {[%clk 0:02:28.9]} 13... O-O {[%clk
0:03:11.3]} 14. Nxa4 {[%clk 0:02:25.7]} 14... Be7 {[%clk 0:03:12.4]} 15. b3
{[%clk 0:02:24.8]} 15... Bb7 {[%clk 0:03:04.8]} 16. Bb2 {[%clk 0:02:25]} 16...
Ng4 {[%clk 0:03:01.4]} 17. h3 {[%clk 0:02:13.5]} 17... Bxf3 {[%clk 0:02:32]} 18.
Qxf3 {[%clk 0:02:13.8]} 18... Qh2+ {[%clk 0:02:33.6]} 19. Kf1 {[%clk 0:02:14.5]}
19... Ne5 {[%clk 0:02:35.5]} 20. Bxe5 {[%clk 0:01:40.1]} 20... Qxe5 {[%clk
0:02:37.4]} 21. Qf4 {[%clk 0:01:25.2]} 21... Qxf4 {[%clk 0:02:38.3]} 22. exf4
{[%clk 0:01:26.1]} 22... Rad8 {[%clk 0:02:40.2]} 23. Ke2 {[%clk 0:01:22.9]}
23... Bf6 {[%clk 0:02:37.7]} 24. Rxd8 {[%clk 0:01:22.5]} 24... Rxd8 {[%clk
0:02:38.2]} 25. Rd1 {[%clk 0:01:23.5]} 25... Rxd1 {[%clk 0:02:39.5]} 26. Kxd1
{[%clk 0:01:24.8]} 26... Bd4 {[%clk 0:02:41.2]} 27. Ke2 {[%clk 0:01:18.5]} 27...
Kf8 {[%clk 0:02:42.5]} 28. g4 {[%clk 0:01:02.9]} 28... Ke7 {[%clk 0:02:43.3]}
29. f5 {[%clk 0:01:02]} 29... exf5 {[%clk 0:02:44]} 30. gxf5 {[%clk 0:01:03.1]}
30... a5 {[%clk 0:02:20.1]} 31. f4 {[%clk 0:01:03.7]} 31... Kf6 {[%clk
0:01:49.7]} 32. Kf3 {[%clk 0:01:00.9]} 32... Kxf5 {[%clk 0:01:50.5]} 33. Bxf7
{[%clk 0:01:01.6]} 33... Nd3 {[%clk 0:01:31]} 34. Bd5 {[%clk 0:00:37.6]} 34...
Nxf4 {[%clk 0:01:27.4]} 35. Be4+ {[%clk 0:00:37.2]} 35... Ke5 {[%clk 0:01:28.8]}
36. Bxh7 {[%clk 0:00:37.9]} 36... Nxh3 {[%clk 0:01:29.8]} 37. Bg8 {[%clk
0:00:36]} 37... Nf4 {[%clk 0:01:26.4]} 38. Bc4 {[%clk 0:00:35.5]} 38... Nd5
{[%clk 0:01:19.9]} 39. Bd3 {[%clk 0:00:28.5]} 39... Nf6 {[%clk 0:01:20.7]} 40.
Bg6 {[%clk 0:00:27.5]} 40... Nd5 {[%clk 0:01:10.7]} 41. Kg4 {[%clk 0:00:22.4]}
41... Kf6 {[%clk 0:01:01.3]} 42. Be4 {[%clk 0:00:21.7]} 42... Ne3+ {[%clk
0:01:02.7]} 43. Kf3 {[%clk 0:00:22.3]} 43... g5 {[%clk 0:01:03.3]} 44. Bb7
{[%clk 0:00:17.6]} 44... Ke5 {[%clk 0:00:57.2]} 45. Bc8 {[%clk 0:00:18.2]} 45...
Nd5 {[%clk 0:00:58.4]} 46. Bd7 {[%clk 0:00:15.5]} 46... Nf6 {[%clk 0:00:59.2]}
47. Bc8 {[%clk 0:00:16.2]} 47... Kd5 {[%clk 0:00:58.9]} 48. Bb7+ {[%clk
0:00:14.4]} 48... Kd6 {[%clk 0:00:59.6]} 49. Ke2 {[%clk 0:00:15.2]} 49... Ke5
{[%clk 0:00:53.1]} 50. Kd3 {[%clk 0:00:15.5]} 50... g4 {[%clk 0:00:52]} 51. Nc3
{[%clk 0:00:14.4]} 51... Bxc3 {[%clk 0:00:52.6]} 52. Kxc3 {[%clk 0:00:15.6]}
52... Ne4+ {[%clk 0:00:54.1]} 53. Kd3 {[%clk 0:00:06.3]} 53... Nc5+ {[%clk
0:00:54.8]} 54. Ke3 {[%clk 0:00:07.8]} 54... Nxb7 {[%clk 0:00:56.7]} 55. b4
{[%clk 0:00:08.9]} 55... axb4 {[%clk 0:00:58.1]} 0-1

[Event "*** Titled Tuesday Blitz"]
[Site "Chess.com"]
[Date "2020.02.04"]
[Round "6"]
[White "Storne89"]
[Black "GadimbayliA"]
[Result "0-1"]
[WhiteElo "2640"]
[BlackElo "2900"]
[TimeControl "180+2"]
[EndTime "14:19:50 PST"]
[Termination "GadimbayliA won by resignation"]

1. e4 {[%clk 0:03:01.9]} 1... e6 {[%clk 0:01:37.1]} 2. d4 {[%clk 0:03:01.1]}
2... d5 {[%clk 0:01:39]} 3. Nc3 {[%clk 0:03:02.4]} 3... Bb4 {[%clk 0:01:38.9]}
4. e5 {[%clk 0:03:03.2]} 4... c5 {[%clk 0:01:39.8]} 5. a3 {[%clk 0:03:04.3]}
5... Bxc3+ {[%clk 0:01:41.3]} 6. bxc3 {[%clk 0:03:06.2]} 6... Ne7 {[%clk
0:01:42.8]} 7. h4 {[%clk 0:03:06]} 7... Qa5 {[%clk 0:01:43.4]} 8. Bd2 {[%clk
0:03:00.8]} 8... Nbc6 {[%clk 0:01:44.7]} 9. h5 {[%clk 0:03:01]} 9... h6 {[%clk
0:01:45.8]} 10. Qg4 {[%clk 0:02:54.4]} 10... Kf8 {[%clk 0:01:16.7]} 11. Nf3
{[%clk 0:02:48.4]} 11... Qa4 {[%clk 0:01:15.8]} 12. Bd3 {[%clk 0:02:46.7]} 12...
b6 {[%clk 0:01:10.9]} 13. O-O {[%clk 0:02:41.9]} 13... Ba6 {[%clk 0:01:11.3]}
14. Bxa6 {[%clk 0:02:26.9]} 14... Qxa6 {[%clk 0:01:13.2]} 15. dxc5 {[%clk
0:02:27.6]} 15... bxc5 {[%clk 0:01:12.1]} 16. Be3 {[%clk 0:02:29.1]} 16... Qa5
{[%clk 0:01:12.5]} 17. c4 {[%clk 0:02:23.6]} 17... d4 {[%clk 0:01:00]} 18. Bf4
{[%clk 0:02:24.5]} 18... Qa4 {[%clk 0:00:57.4]} 19. Nd2 {[%clk 0:02:25.3]} 19...
Qxc2 {[%clk 0:00:56]} 20. Rfc1 {[%clk 0:02:25.1]} 20... Qd3 {[%clk 0:00:50.5]}
21. Rab1 {[%clk 0:02:08.6]} 21... Rc8 {[%clk 0:00:50.8]} 22. Rb3 {[%clk
0:02:07]} 22... Qf5 {[%clk 0:00:51.7]} 23. Qg3 {[%clk 0:02:02.4]} 23... Qxh5
{[%clk 0:00:46.5]} 24. Ne4 {[%clk 0:02:03.5]} 24... Qg6 {[%clk 0:00:34.2]} 25.
Qf3 {[%clk 0:01:43.7]} 25... Kg8 {[%clk 0:00:33.5]} 26. Nxc5 {[%clk 0:01:38.8]}
26... Kh7 {[%clk 0:00:34.3]} 27. Ne4 {[%clk 0:01:31.4]} 27... Nf5 {[%clk
0:00:34.9]} 28. Rb7 {[%clk 0:01:19.6]} 28... Nh4 {[%clk 0:00:29]} 29. Qh3 {[%clk
0:01:10.5]} 29... Qxe4 {[%clk 0:00:28.3]} 30. Qxh4 {[%clk 0:01:11.9]} 30... Nxe5
{[%clk 0:00:28.6]} 31. Qg3 {[%clk 0:01:00.5]} 31... Qxb7 {[%clk 0:00:20.6]} 32.
Bxe5 {[%clk 0:01:00.5]} 32... f6 {[%clk 0:00:21.5]} 33. Bxd4 {[%clk 0:01:01.3]}
33... Rhd8 {[%clk 0:00:22.3]} 34. Be3 {[%clk 0:00:59]} 34... Qb3 {[%clk
0:00:21.1]} 35. c5 {[%clk 0:00:59.3]} 35... Rd1+ {[%clk 0:00:22.2]} 36. Rxd1
{[%clk 0:01:00.6]} 36... Qxd1+ {[%clk 0:00:24.1]} 37. Kh2 {[%clk 0:01:02.5]}
37... Qh5+ {[%clk 0:00:26]} 38. Kg1 {[%clk 0:01:03.4]} 38... Rd8 {[%clk
0:00:26.5]} 39. f3 {[%clk 0:00:58.6]} 39... Rd3 {[%clk 0:00:26.1]} 40. Qf4
{[%clk 0:00:58.2]} 40... Qe5 {[%clk 0:00:19.7]} 41. Qxe5 {[%clk 0:00:56.7]}
41... fxe5 {[%clk 0:00:21.6]} 42. Kf2 {[%clk 0:00:57.9]} 42... Rxa3 {[%clk
0:00:22.9]} 43. Ke2 {[%clk 0:00:58.6]} 43... a5 {[%clk 0:00:20.4]} 44. Kd2
{[%clk 0:00:59.6]} 44... Rb3 {[%clk 0:00:20.5]} 45. c6 {[%clk 0:00:59.2]} 45...
Rb8 {[%clk 0:00:21.3]} 46. c7 {[%clk 0:00:57.8]} 46... Rc8 {[%clk 0:00:22.5]}
47. Bb6 {[%clk 0:00:58.9]} 47... a4 {[%clk 0:00:24]} 48. Kc3 {[%clk 0:01:00.3]}
48... Kg8 {[%clk 0:00:25.3]} 49. Kb4 {[%clk 0:01:01.4]} 49... Kf7 {[%clk
0:00:26.7]} 50. Kxa4 {[%clk 0:01:02.8]} 50... Ke8 {[%clk 0:00:28]} 51. Kb5
{[%clk 0:01:02]} 51... Kd7 {[%clk 0:00:29.2]} 52. Kc5 {[%clk 0:01:02.8]} 52...
Ra8 {[%clk 0:00:25.2]} 53. Kc4 {[%clk 0:00:47.7]} 53... Ra2 {[%clk 0:00:23.6]}
54. g3 {[%clk 0:00:48.9]} 54... Ra3 {[%clk 0:00:23.6]} 55. f4 {[%clk 0:00:48.6]}
55... exf4 {[%clk 0:00:23.3]} 56. gxf4 {[%clk 0:00:49.2]} 56... Ra4+ {[%clk
0:00:24.7]} 57. Kb5 {[%clk 0:00:49.4]} 57... Rxf4 {[%clk 0:00:25.9]} 58. Ka6
{[%clk 0:00:51.3]} 58... Kc8 {[%clk 0:00:26.5]} 0-1

[Event "*** Titled Tuesday Blitz"]
[Site "Chess.com"]
[Date "2020.02.04"]
[Round "6"]
[White "Shukh_Nikolay"]
[Black "Dynamikus"]
[Result "1-0"]
[WhiteElo "2539"]
[BlackElo "2755"]
[TimeControl "180+2"]
[EndTime "14:19:51 PST"]
[Termination "Shukh_Nikolay won by resignation"]

1. e4 {[%clk 0:03:00]} 1... c6 {[%clk 0:02:58]} 2. d4 {[%clk 0:03:00.4]} 2... d5
{[%clk 0:02:59.9]} 3. Nd2 {[%clk 0:03:01.9]} 3... dxe4 {[%clk 0:02:59.4]} 4.
Nxe4 {[%clk 0:03:03.5]} 4... Nf6 {[%clk 0:03:00.1]} 5. Nxf6+ {[%clk 0:03:04.1]}
5... exf6 {[%clk 0:03:02]} 6. h4 {[%clk 0:02:57.8]} 6... Bd6 {[%clk 0:03:03.9]}
7. Be3 {[%clk 0:02:56]} 7... O-O {[%clk 0:03:02.1]} 8. h5 {[%clk 0:02:54.1]}
8... Re8 {[%clk 0:03:01.7]} 9. Qd2 {[%clk 0:02:54.6]} 9... Nd7 {[%clk
0:02:59.7]} 10. O-O-O {[%clk 0:02:54]} 10... Nf8 {[%clk 0:02:51.7]} 11. h6
{[%clk 0:02:54.3]} 11... g6 {[%clk 0:02:52.2]} 12. Bc4 {[%clk 0:02:44]} 12... b5
{[%clk 0:02:47.7]} 13. Bd3 {[%clk 0:02:41.5]} 13... Be6 {[%clk 0:02:34.9]} 14.
Kb1 {[%clk 0:02:37.6]} 14... Bd5 {[%clk 0:02:31.9]} 15. Nf3 {[%clk 0:02:35.7]}
15... a5 {[%clk 0:02:26.2]} 16. Bf4 {[%clk 0:02:31.4]} 16... Ne6 {[%clk
0:02:07.1]} 17. Bxd6 {[%clk 0:02:01.3]} 17... Qxd6 {[%clk 0:02:09]} 18. c3
{[%clk 0:02:02.2]} 18... b4 {[%clk 0:02:03.5]} 19. Rhe1 {[%clk 0:01:57.8]} 19...
bxc3 {[%clk 0:01:56.8]} 20. Qxc3 {[%clk 0:01:58.3]} 20... Qf4 {[%clk 0:01:36.6]}
21. Qc1 {[%clk 0:01:44.6]} 21... Bxf3 {[%clk 0:01:26.4]} 22. Qxf4 {[%clk
0:01:19.9]} 22... Nxf4 {[%clk 0:01:28.3]} 23. Rxe8+ {[%clk 0:01:20.7]} 23...
Rxe8 {[%clk 0:01:29.2]} 24. gxf3 {[%clk 0:01:22.1]} 24... f5 {[%clk 0:01:24.6]}
25. Bc4 {[%clk 0:01:17.4]} 25... Kf8 {[%clk 0:01:19.2]} 26. Kc2 {[%clk
0:01:06.4]} 26... Rd8 {[%clk 0:01:13.5]} 27. Kc3 {[%clk 0:00:51.6]} 27... Ke7
{[%clk 0:01:08]} 28. Re1+ {[%clk 0:00:50.9]} 28... Kf6 {[%clk 0:01:08.1]} 29.
Re5 {[%clk 0:00:47.5]} 29... Ra8 {[%clk 0:00:55.5]} 30. Rc5 {[%clk 0:00:39.2]}
30... Kg5 {[%clk 0:00:52.4]} 31. Rxc6 {[%clk 0:00:40]} 31... Kxh6 {[%clk
0:00:53.7]} 32. d5 {[%clk 0:00:40.6]} 32... Kg7 {[%clk 0:00:42.6]} 33. d6 {[%clk
0:00:39]} 33... Rd8 {[%clk 0:00:43]} 34. Kd4 {[%clk 0:00:33.8]} 34... Kf6 {[%clk
0:00:42.9]} 35. Kc5 {[%clk 0:00:29.2]} 35... h5 {[%clk 0:00:38.5]} 36. Rc7
{[%clk 0:00:28.7]} 36... Ne6+ {[%clk 0:00:36]} 37. Bxe6 {[%clk 0:00:28]} 37...
Kxe6 {[%clk 0:00:36.6]} 38. Re7+ {[%clk 0:00:26.9]} 38... Kf6 {[%clk 0:00:37.7]}
39. Kc6 {[%clk 0:00:27.5]} 39... h4 {[%clk 0:00:30.7]} 40. Kc7 {[%clk 0:00:26]}
40... Ra8 {[%clk 0:00:17.3]} 41. Re1 {[%clk 0:00:26.4]} 41... Ra7+ {[%clk
0:00:17.7]} 42. Kb6 {[%clk 0:00:27]} 42... Rd7 {[%clk 0:00:16.9]} 43. Kc6 {[%clk
0:00:27.7]} 43... Rd8 {[%clk 0:00:18.2]} 44. Kc7 {[%clk 0:00:27.9]} 44... Ra8
{[%clk 0:00:18.9]} 45. d7 {[%clk 0:00:28.9]} 45... Ra7+ {[%clk 0:00:20]} 46. Kc6
{[%clk 0:00:29.1]} 46... Ra8 {[%clk 0:00:21]} 47. Re8 {[%clk 0:00:29.2]} 47...
Ra6+ {[%clk 0:00:21]} 48. Kb5 {[%clk 0:00:28.7]} 48... Rd6 {[%clk 0:00:22]} 49.
d8=Q+ {[%clk 0:00:29.6]} 49... Rxd8 {[%clk 0:00:23.4]} 50. Rxd8 {[%clk
0:00:31.1]} 50... Kg5 {[%clk 0:00:25.3]} 51. Rh8 {[%clk 0:00:31]} 1-0